bitfinex-derivatives/quotes_BTCF0:USTF0_20250602
["timestamp","ask_amount","ask_price","bid_price","bid_amount"]
[1748846458481,0.03814954,105060.0,105050.0,1.05863894]
[1748846458682,0.00544954,105060.0,105050.0,1.05863894]
[1748846458882,0.00544954,105060.0,105050.0,0.97809948]
[1748846459581,0.00544954,105060.0,105050.0,1.01431151]
[1748846460482,0.00544954,105060.0,105050.0,0.89831853]
[1748846460680,0.00544954,105060.0,105050.0,1.01431151]
[1748846460878,0.03554954,105060.0,105050.0,1.44963151]
[1748846461071,0.06694954,105060.0,105050.0,1.44963151]
[1748846461986,0.10024954,105060.0,105050.0,1.44963151]
[1748846462177,0.10024954,105060.0,105050.0,1.39519783]
[1748846462381,0.10024954,105060.0,105050.0,1.45431905]
[1748846462582,0.10024954,105060.0,105050.0,1.49615529]
[1748846463188,0.10024954,105060.0,105050.0,1.06334026]
[1748846463387,0.10024954,105060.0,105050.0,1.49866026]
[1748846464278,0.10024954,105060.0,105050.0,1.51074211]
[1748846466684,0.10024954,105060.0,105050.0,1.51076846]
[1748846467687,0.10024954,105060.0,105050.0,0.95945548]
[1748846467990,0.10024954,105060.0,105050.0,1.51072846]
[1748846469393,0.06694954,105060.0,105050.0,1.39473548]
[1748846469781,0.06694954,105060.0,105050.0,1.51072846]
[1748846469977,0.00544954,105060.0,105050.0,1.85945258]
[1748846470178,0.14823774,105080.0,105070.0,0.1902791]
[1748846470381,0.16978123,105090.0,105080.0,0.190261]
[1748846470581,0.08096203,105090.0,105080.0,0.98832992]
[1748846470781,0.02174349,105090.0,105080.0,0.98883246]
[1748846470988,0.05374349,105090.0,105080.0,1.0334126]
[1748846471195,0.05374349,105090.0,105080.0,0.91741962]
[1748846471386,0.05374349,105090.0,105080.0,1.0334126]
[1748846471896,0.08634349,105090.0,105080.0,1.0334126]
[1748846472288,2.14378729,105120.0,105090.0,0.047558]
[1748846472289,0.1204256,105120.0,105090.0,0.047558]
[1748846472482,0.1184256,105130.0,105120.0,0.1901885]
[1748846472781,0.20856896,105140.0,105120.0,0.1901885]
[1748846472782,0.1494256,105140.0,105130.0,0.1901704]
[1748846472987,0.063,105140.0,105130.0,1.52920338]
[1748846473291,0.17919298,105140.0,105130.0,1.05342167]
[1748846473481,0.17919298,105140.0,105130.0,0.43735381]
[1748846473482,0.36934558,105140.0,105130.0,0.43735381]
[1748846473688,0.36934558,105140.0,105130.0,0.22402451]
[1748846474191,0.17919298,105140.0,105130.0,0.22402451]
[1748846474395,0.0642,105140.0,105130.0,0.22402451]
[1748846474591,0.0642,105140.0,105130.0,0.61752451]
[1748846474797,0.0642,105140.0,105130.0,0.66444217]
[1748846475790,0.0642,105140.0,105130.0,0.67395503]
[1748846476392,0.16524,105140.0,105130.0,1.05395503]
[1748846476593,0.16504,105140.0,105130.0,1.05395503]
[1748846476794,0.16524,105140.0,105130.0,1.05395503]
[1748846477301,0.0012,105140.0,105130.0,1.05395503]
[1748846477597,0.0012,105140.0,105130.0,1.16994801]
[1748846477997,0.001,105140.0,105130.0,0.86994801]
[1748846478197,0.0012,105140.0,105130.0,0.86994801]
[1748846478495,0.001,105140.0,105130.0,1.10994801]
[1748846478706,0.0012,105140.0,105130.0,1.10994801]
[1748846479401,0.00544954,105140.0,105130.0,1.10994801]
[1748846480188,0.00544954,105140.0,105130.0,1.11070182]
[1748846481091,0.00524954,105140.0,105130.0,1.11070182]
[1748846481292,0.00544954,105140.0,105130.0,1.11070182]
[1748846483092,0.00524954,105140.0,105130.0,1.11070182]
[1748846483301,0.00544954,105140.0,105130.0,1.11070182]
[1748846487510,0.00544954,105140.0,105130.0,3.14806182]
[1748846488105,0.00524954,105140.0,105130.0,3.14806182]
[1748846488407,0.00544954,105140.0,105130.0,3.14806182]
[1748846488799,0.002,105150.0,105140.0,0.1901526]
[1748846489111,0.002,105150.0,105140.0,1.14324812]
[1748846489305,0.0022,105150.0,105140.0,0.94349939]
[1748846489506,0.0022,105150.0,105140.0,1.12349939]
[1748846489507,0.002,105150.0,105140.0,1.12349939]
[1748846489905,0.0022,105150.0,105140.0,1.12349939]
[1748846490104,0.0302,105170.0,105160.0,0.1901165]
[1748846490407,0.17463294,105180.0,105170.0,0.1900984]
[1748846490609,0.17463294,105180.0,105170.0,1.04249392]
[1748846490806,0.48090622,105180.0,105170.0,0.56570094]
[1748846491005,0.48090622,105180.0,105170.0,0.23342268]
[1748846491304,0.48090622,105180.0,105170.0,0.22385221]
[1748846491511,0.84170622,105180.0,105170.0,0.22385221]
[1748846492116,0.29082592,105180.0,105170.0,0.22385221]
[1748846492502,0.17483294,105180.0,105170.0,0.22385221]
[1748846492707,0.17483294,105180.0,105170.0,0.25705221]
[1748846493004,0.17483294,105180.0,105170.0,0.34705221]
[1748846493211,0.17483294,105180.0,105170.0,0.56705221]
[1748846493407,0.17483294,105180.0,105170.0,0.57666017]
[1748846493715,0.36491354,105180.0,105170.0,0.35666017]
[1748846493916,0.17483294,105180.0,105170.0,0.36141017]
[1748846495609,0.17908248,105180.0,105170.0,0.36141017]
[1748846496214,0.72996308,105180.0,105170.0,0.36141017]
[1748846496808,0.44268248,105180.0,105170.0,0.36141017]
[1748846497110,0.00624954,105180.0,105170.0,1.11820315]
[1748846497322,0.00644954,105180.0,105170.0,1.11820315]
[1748846497504,0.00644954,105180.0,105170.0,1.13570801]
[1748846498617,0.03964954,105180.0,105170.0,1.37170801]
[1748846498801,0.10224954,105180.0,105170.0,0.81971503]
[1748846499006,0.21824252,105180.0,105170.0,0.69167503]
[1748846499413,0.40832312,105180.0,105170.0,0.25571503]
[1748846499612,0.76912312,105180.0,105170.0,0.69163503]
[1748846499817,0.76912312,105180.0,105170.0,0.25571503]
[1748846500316,0.76912312,105180.0,105170.0,0.20505112]
[1748846500516,0.78822855,105180.0,105170.0,0.20505112]
[1748846500917,0.59814795,105180.0,105170.0,0.20505112]
[1748846501112,0.78822865,105180.0,105170.0,0.20505112]
[1748846501303,0.42742865,105180.0,105170.0,0.20505112]
[1748846501506,0.31143567,105180.0,105170.0,0.20505112]
[1748846503420,0.67223567,105180.0,105170.0,0.20505112]
[1748846503824,0.67223567,105180.0,105170.0,0.22243662]
[1748846504127,0.41283567,105180.0,105170.0,0.24586449]
[1748846507927,0.22275497,105180.0,105170.0,0.24586449]
[1748846508328,0.31143557,105180.0,105170.0,0.27716449]
[1748846509033,0.12135497,105180.0,105170.0,0.3613198]
[1748846509326,0.22275497,105180.0,105170.0,0.3613198]
[1748846511917,0.22275497,105180.0,105170.0,0.31716449]
[1748846512227,0.22275497,105180.0,105170.0,0.36134107]
[1748846513428,0.22275497,105180.0,105170.0,0.32209488]
[1748846514527,0.41283547,105180.0,105170.0,0.32209488]
[1748846515432,0.52882845,105180.0,105170.0,0.29079488]
[1748846515629,0.41283547,105180.0,105170.0,0.29079488]
[1748846515828,0.52882845,105180.0,105170.0,0.29079488]
[1748846516029,0.52882845,105180.0,105170.0,0.28118692]
[1748846516528,0.88962845,105180.0,105170.0,0.28118692]
[1748846516832,0.88962845,105180.0,105170.0,0.27191479]
[1748846518925,0.77363547,105180.0,105170.0,0.27191479]
[1748846519238,0.77363547,105180.0,105170.0,0.42772396]
[1748846519429,0.77363547,105180.0,105170.0,0.31173098]
[1748846519629,0.8326303,105180.0,105170.0,0.37040196]
[1748846520435,0.8326303,105180.0,105170.0,0.32622538]
[1748846520636,0.8326303,105180.0,105170.0,0.37050936]
[1748846522131,0.7312303,105180.0,105170.0,0.37050936]
[1748846522335,1.38542328,105180.0,105170.0,0.40070936]
[1748846522837,0.94862328,105180.0,105170.0,0.34203838]
[1748846523136,0.84722328,105180.0,105170.0,0.34203838]
[1748846523325,1.38550328,105180.0,105170.0,0.3420395]
[1748846523530,1.2695103,105180.0,105170.0,0.3420395]
[1748846524635,0.4404301,105180.0,105170.0,0.81883248]
[1748846524832,0.4404301,105180.0,105170.0,0.45803248]
[1748846525137,0.00624954,105180.0,105170.0,1.36626326]
[1748846525338,0.00644954,105180.0,105170.0,1.68626326]
[1748846525639,0.00624954,105180.0,105170.0,3.18626326]
[1748846525835,0.00644954,105180.0,105170.0,3.18626326]
[1748846526225,0.00644954,105180.0,105170.0,3.07027028]
[1748846526430,0.00644954,105180.0,105170.0,3.18626326]
[1748846527435,0.00644954,105180.0,105170.0,3.15012476]
[1748846527631,0.00624954,105180.0,105170.0,3.19839039]
[1748846527938,0.00644954,105180.0,105170.0,3.19839039]
[1748846529639,0.00644954,105180.0,105170.0,3.15012476]
[1748846529836,0.00644954,105180.0,105170.0,3.03413178]
[1748846530039,0.00644954,105180.0,105170.0,3.15012476]
[1748846530731,0.00644954,105180.0,105170.0,3.19823988]
[1748846531544,0.00644954,105180.0,105170.0,3.19823204]
[1748846531746,0.18592321,105200.0,105190.0,0.1900623]
[1748846531945,0.18592321,105200.0,105190.0,0.34238618]
[1748846532246,0.18592321,105200.0,105190.0,0.43518872]
[1748846532639,0.08452321,105200.0,105190.0,1.93518872]
[1748846532950,0.18784321,105200.0,105190.0,1.93518872]
[1748846533134,0.08552321,105200.0,105190.0,1.93518872]
[1748846533330,0.18784321,105200.0,105190.0,0.43518872]
[1748846534545,0.18784321,105200.0,105190.0,0.43993872]
[1748846534546,0.12884838,105200.0,105190.0,0.43993872]
[1748846535537,0.12884838,105200.0,105190.0,0.48641326]
[1748846538239,0.12884838,105200.0,105190.0,0.37042028]
[1748846538439,0.12884838,105200.0,105190.0,0.48641326]
[1748846539137,0.02652838,105200.0,105190.0,0.48641326]
[1748846539337,0.12884838,105200.0,105190.0,0.48641326]
[1748846540251,0.32314202,105200.0,105190.0,0.48641326]
[1748846540951,0.35424202,105200.0,105190.0,0.48641326]
[1748846541646,0.35424202,105200.0,105190.0,0.45033363]
[1748846542053,0.16419792,105200.0,105190.0,0.45033363]
[1748846542252,0.35424102,105200.0,105190.0,0.45033363]
[1748846544537,0.35424102,105200.0,105190.0,0.33434065]
[1748846544743,0.35424102,105200.0,105190.0,0.45033363]
[1748846546347,0.35424102,105200.0,105190.0,0.45108744]
[1748846547856,0.38534102,105200.0,105190.0,0.45108744]
[1748846548651,0.44433585,105200.0,105190.0,0.45108744]
[1748846549556,0.44433685,105200.0,105190.0,0.495277]
[1748846550559,0.25429275,105200.0,105190.0,0.495277]
[1748846550758,0.44433685,105200.0,105190.0,0.495277]
[1748846551461,0.44433685,105200.0,105190.0,0.37928402]
[1748846551762,0.44433685,105200.0,105190.0,0.495277]
[1748846553555,0.44433685,105200.0,105190.0,0.53135663]
[1748846553957,0.44433685,105200.0,105190.0,0.41536365]
[1748846555465,0.44433685,105200.0,105190.0,0.53135663]
[1748846556165,0.532446,105200.0,105190.0,0.54338318]
[1748846556558,0.532446,105200.0,105190.0,0.4273902]
[1748846556761,0.08977275,105200.0,105190.0,0.54338318]
[1748846556962,0.22289275,105200.0,105190.0,0.54338318]
[1748846557164,0.22309275,105200.0,105190.0,0.54338318]
[1748846557669,0.44513685,105200.0,105190.0,0.60242454]
[1748846557863,0.25509275,105200.0,105190.0,0.60242454]
[1748846558251,0.25509275,105200.0,105190.0,0.48643156]
[1748846558458,1.44699898,105200.0,105190.0,0.20406926]
[1748846558664,0.92192983,105200.0,105190.0,0.37131634]
[1748846558864,0.95104415,105200.0,105190.0,0.27893289]
[1748846559058,0.95104415,105200.0,105190.0,0.31193289]
[1748846559251,0.95104415,105200.0,105190.0,0.35621016]
[1748846559457,0.95104415,105200.0,105190.0,0.38711016]
[1748846561464,0.54268707,105200.0,105190.0,0.35097163]
[1748846561665,1.27193177,105200.0,105190.0,0.38167163]
[1748846561860,1.33153562,105200.0,105190.0,0.49767041]
[1748846562562,1.33153562,105200.0,105190.0,0.38167743]
[1748846562963,1.4475286,105200.0,105190.0,0.38167743]
[1748846566768,1.4475286,105200.0,105190.0,0.35097743]
[1748846567763,1.38812475,105200.0,105190.0,0.35097743]
[1748846569270,1.41922475,105200.0,105190.0,0.35097743]
[1748846570675,1.41922475,105200.0,105190.0,0.35096787]
[1748846571156,1.57424005,105200.0,105180.0,0.09523515]
[1748846571357,1.38652483,105190.0,105180.0,0.05909662]
[1748846571563,1.3995282,105190.0,105180.0,0.00014297]
[1748846571757,1.01932675,105200.0,105190.0,98.6004718]
[1748846571962,1.76970773,105200.0,105190.0,98.6004718]
[1748846572164,2.01970773,105200.0,105190.0,98.6004718]
[1748846572462,2.11970773,105200.0,105190.0,98.6004718]
[1748846573366,2.11870773,105200.0,105190.0,98.6004718]
[1748846574069,1.58038773,105200.0,105190.0,98.6004718]
[1748846574262,1.86962773,105200.0,105190.0,98.6004718]
[1748846574462,1.86962773,105200.0,105190.0,98.6651718]
[1748846574969,1.95992773,105200.0,105190.0,98.6651718]
[1748846575170,1.84393475,105200.0,105190.0,98.6651718]
[1748846575366,1.95992773,105200.0,105190.0,98.6651718]
[1748846578371,1.52292773,105200.0,105190.0,98.6651718]
[1748846578571,1.95988773,105200.0,105190.0,98.6651718]
[1748846581579,1.95987973,105200.0,105190.0,98.6651718]
[1748846582279,0.64731115,105200.0,105190.0,98.97122688]
[1748846582480,0.59979615,105200.0,105190.0,99.36252688]
[1748846582677,0.65887805,105200.0,105190.0,99.2465339]
[1748846582878,0.77487103,105200.0,105190.0,99.2465339]
[1748846583085,0.77507103,105200.0,105190.0,99.2465339]
[1748846584292,0.77507103,105200.0,105190.0,99.6833739]
[1748846585489,0.19025982,105200.0,105190.0,99.84761969]
[1748846585797,0.38030302,105200.0,105190.0,99.84761969]
[1748846585994,0.29249982,105200.0,105190.0,101.34761969]
[1748846586288,0.23321792,105200.0,105190.0,101.34761969]
[1748846586491,0.29249982,105200.0,105190.0,101.34761969]
[1748846586793,0.38254332,105200.0,105190.0,101.34761969]
[1748846587382,0.19249982,105200.0,105190.0,101.34761969]
[1748846589194,0.38254402,105200.0,105190.0,101.34761969]
[1748846590896,0.28030402,105200.0,105190.0,101.23162671]
[1748846591095,0.38254402,105200.0,105190.0,101.23162671]
[1748846591893,0.19249982,105200.0,105190.0,101.23162671]
[1748846592090,0.19249982,105200.0,105190.0,101.23138671]
[1748846592486,0.13321792,105200.0,105190.0,101.23138671]
[1748846592886,0.19249982,105200.0,105190.0,101.34737969]
[1748846594194,0.19249982,105200.0,105190.0,101.23138671]
[1748846594396,0.19249982,105200.0,105190.0,101.34737969]
[1748846594590,0.13321792,105200.0,105190.0,101.34737969]
[1748846594792,0.32326212,105200.0,105190.0,101.34737969]
[1748846598097,0.32326212,105200.0,105190.0,100.98657969]
[1748846598288,0.32326212,105200.0,105190.0,101.34737969]
[1748846598794,0.13321792,105200.0,105190.0,101.34737969]
[1748846603102,0.13321792,105200.0,105190.0,101.36625921]
[1748846604605,0.13321792,105200.0,105190.0,101.00545921]
[1748846604807,0.13321792,105200.0,105190.0,100.92965921]
[1748846604993,0.13321792,105200.0,105190.0,101.36569921]
[1748846605403,0.13321792,105200.0,105190.0,101.40183774]
[1748846609609,0.19249982,105200.0,105190.0,101.40183774]
[1748846610500,0.19249982,105200.0,105190.0,101.04103774]
[1748846610700,0.19209982,105200.0,105190.0,101.40183774]
[1748846611305,0.09025982,105200.0,105190.0,101.40183774]
[1748846612401,0.09025982,105200.0,105190.0,101.36569921]
[1748846612602,0.09025982,105200.0,105190.0,101.42465286]
[1748846612806,0.39160222,105220.0,105210.0,0.1900261]
[1748846612996,0.52038629,105220.0,105210.0,0.5508261]
[1748846613309,0.52038629,105220.0,105210.0,0.69050183]
[1748846613607,0.55058629,105220.0,105210.0,0.69050183]
[1748846613802,0.55078629,105220.0,105210.0,0.69050183]
[1748846614309,0.58318629,105220.0,105210.0,0.69050183]
[1748846614807,0.50744629,105220.0,105210.0,0.70018423]
[1748846615109,0.60928629,105220.0,105210.0,0.70018423]
[1748846615512,0.60928629,105220.0,105210.0,0.32970183]
[1748846616010,0.60928629,105220.0,105210.0,0.29660213]
[1748846616604,0.70928629,105220.0,105210.0,0.29660213]
[1748846616805,0.70928629,105220.0,105210.0,0.2538264]
[1748846617005,0.70928629,105220.0,105210.0,0.29672344]
[1748846619516,0.70928629,105220.0,105210.0,0.10669704]
[1748846620815,1.07008629,105220.0,105210.0,0.0638]
[1748846621017,1.18851189,105220.0,105210.0,0.0638]
[1748846621218,0.82771189,105220.0,105210.0,0.05453009]
[1748846621417,1.18851189,105220.0,105210.0,0.05453009]
[1748846623822,0.1900251,105210.0,105200.0,0.00014297]
[1748846624128,1.54098476,105210.0,105200.0,0.00014297]
[1748846624423,1.51761116,105210.0,105200.0,0.00014297]
[1748846624623,1.51761116,105210.0,105200.0,0.70988392]
[1748846624624,0.30413393,105210.0,105200.0,0.70988392]
[1748846624810,0.40413393,105210.0,105200.0,0.814149]
[1748846625016,0.40413393,105210.0,105200.0,0.69815602]
[1748846625623,0.40413393,105210.0,105200.0,0.69813725]
[1748846626319,0.30433393,105210.0,105200.0,0.69813725]
[1748846627123,0.30433393,105210.0,105200.0,0.68877217]
[1748846627521,0.20309393,105210.0,105200.0,0.80476515]
[1748846627724,0.1902251,105210.0,105200.0,0.80476515]
[1748846627925,0.1902251,105210.0,105200.0,0.85036978]
[1748846628120,0.1900251,105210.0,105200.0,0.85036978]
[1748846628319,0.1902251,105210.0,105200.0,0.85036978]
[1748846629126,0.2914651,105210.0,105200.0,0.85036978]
[1748846629427,0.29571464,105210.0,105200.0,0.7343768]
[1748846629831,0.29571464,105210.0,105200.0,0.73437958]
[1748846630018,0.19447464,105210.0,105200.0,0.73437958]
[1748846630323,0.29571464,105210.0,105200.0,0.85037256]
[1748846630525,0.29551464,105210.0,105200.0,0.85037256]
[1748846630922,0.19447464,105210.0,105200.0,0.85037256]
[1748846631320,0.19447464,105210.0,105200.0,0.89458678]
[1748846634031,0.19447464,105210.0,105200.0,1.25538678]
[1748846638637,0.19447464,105210.0,105200.0,1.69046678]
[1748846640339,0.19447464,105210.0,105200.0,1.25538678]
[1748846640640,0.31046762,105210.0,105200.0,1.09517988]
[1748846640833,0.40416762,105210.0,105200.0,1.09517988]
[1748846641441,0.28817464,105210.0,105200.0,1.09517988]
[1748846641630,0.28817464,105210.0,105200.0,1.05908366]
[1748846642237,0.28817464,105210.0,105200.0,1.04957525]
[1748846643645,0.19427464,105210.0,105200.0,1.16556823]
[1748846643839,0.19447464,105210.0,105200.0,1.16556823]
[1748846644243,0.19447464,105210.0,105200.0,1.05908814]
[1748846644535,0.19427464,105210.0,105200.0,1.05908814]
[1748846644734,0.25487464,105210.0,105200.0,1.05908814]
[1748846645141,0.25507464,105210.0,105200.0,1.05908814]
[1748846645448,0.34406445,105210.0,105200.0,1.059125]
[1748846646053,0.46005743,105210.0,105200.0,0.869081]
[1748846646254,0.34406445,105210.0,105200.0,1.059125]
[1748846649751,0.34406445,105210.0,105200.0,1.05912456]
[1748846650555,0.34406445,105210.0,105200.0,1.09522078]
[1748846653857,0.89549743,105210.0,105200.0,1.09522078]
[1748846654058,0.89549743,105210.0,105200.0,1.09522067]
[1748846654360,0.92769743,105210.0,105200.0,1.09522067]
[1748846654955,0.92769743,105210.0,105200.0,0.90517667]
[1748846655149,1.28849743,105210.0,105200.0,0.14748045]
[1748846655352,0.92769743,105210.0,105200.0,0.14748045]
[1748846655957,0.92769743,105210.0,105200.0,0.13796756]
[1748846656351,1.02769743,105210.0,105200.0,0.13796756]
[1748846657263,1.02769743,105210.0,105200.0,0.14735202]
[1748846657655,1.03731148,105210.0,105200.0,0.08245202]
[1748846658264,1.02769743,105210.0,105200.0,0.10496756]
[1748846658562,1.02769743,105210.0,105200.0,0.10499449]
[1748846659658,1.02769743,105210.0,105200.0,0.10499159]
[1748846660260,1.48874241,105210.0,105200.0,0.04309159]
[1748846660554,1.76994945,105210.0,105200.0,0.00014297]
[1748846660860,1.91798146,105210.0,105200.0,0.00014297]
[1748846661269,1.76994945,105210.0,105200.0,0.00014297]
[1748846664267,1.63850041,105210.0,105200.0,0.00014297]
[1748846664763,1.40651445,105210.0,105200.0,0.00014297]
[1748846665068,1.20306041,105210.0,105200.0,0.00014297]
[1748846665259,0.83183464,105210.0,105200.0,0.17903595]
[1748846665459,0.83183464,105210.0,105200.0,0.25308707]
[1748846665460,0.29447464,105210.0,105200.0,0.25308707]
[1748846665664,0.92052162,105210.0,105200.0,0.72988005]
[1748846665867,0.92072162,105210.0,105200.0,0.72988005]
[1748846666264,0.92072162,105210.0,105200.0,0.61388707]
[1748846666465,0.92068162,105210.0,105200.0,0.61388707]
[1748846667472,0.92068162,105210.0,105200.0,0.62358783]
[1748846667972,1.0366746,105210.0,105200.0,0.62358783]
[1748846668667,1.0365146,105210.0,105200.0,0.62358783]
[1748846669173,1.03226506,105210.0,105200.0,0.62358783]
[1748846669463,0.91627208,105210.0,105200.0,0.62358783]
[1748846669967,0.91619208,105210.0,105200.0,0.62358783]
[1748846670362,0.37911208,105210.0,105200.0,0.62358783]
[1748846670562,0.48035208,105210.0,105200.0,0.73958081]
[1748846670865,0.3916651,105210.0,105200.0,0.78246849]
[1748846671065,0.3914651,105210.0,105200.0,0.78246849]
[1748846671271,0.3916651,105210.0,105200.0,0.78246897]
[1748846671674,0.2916651,105210.0,105200.0,0.78246897]
[1748846674975,0.2916651,105210.0,105200.0,0.66647599]
[1748846675362,0.2916651,105210.0,105200.0,1.21790897]
[1748846675571,0.2916651,105210.0,105200.0,1.17502081]
[1748846675768,0.2916651,105210.0,105200.0,1.21790862]
[1748846676276,0.0002,105210.0,105200.0,0.78246862]
[1748846676478,0.0002,105210.0,105200.0,1.29816278]
[1748846676774,0.30269572,105220.0,105210.0,0.1900245]
[1748846676975,0.30269572,105220.0,105210.0,0.80460529]
[1748846677172,0.25519342,105220.0,105210.0,0.80460529]
[1748846679683,0.35659342,105220.0,105210.0,0.80460529]
[1748846680080,0.36084296,105220.0,105210.0,0.80460529]
[1748846680567,0.36084296,105220.0,105210.0,0.82376931]
[1748846681279,0.35659342,105220.0,105210.0,0.82376931]
[1748846681779,0.25519342,105220.0,105210.0,0.82376931]
[1748846681979,0.39360778,105240.0,105230.0,0.1899893]
[1748846682172,0.4536174,105240.0,105230.0,1.50559009]
[1748846682372,0.3524174,105240.0,105230.0,1.60209009]
[1748846682576,0.4538174,105240.0,105230.0,1.60209009]
[1748846684084,0.4538174,105240.0,105230.0,1.48609711]
[1748846684385,0.4538174,105240.0,105230.0,1.4432093]
[1748846684685,0.4538174,105240.0,105230.0,1.4431693]
[1748846687481,0.3524174,105240.0,105230.0,1.4431693]
[1748846687786,0.4535374,105240.0,105230.0,1.4431693]
[1748846689084,0.4535374,105240.0,105230.0,1.55916228]
[1748846689282,0.4533374,105240.0,105230.0,1.55916228]
[1748846689486,0.4535374,105240.0,105230.0,1.55916228]
[1748846690586,0.4533374,105240.0,105230.0,1.55916228]
[1748846690886,0.4535374,105240.0,105230.0,1.55916228]
[1748846691386,0.45778694,105240.0,105230.0,1.55916228]
[1748846691588,0.41029034,105240.0,105230.0,1.55916228]
[1748846691879,0.30917034,105240.0,105230.0,1.55916228]
[1748846692075,0.26147454,105240.0,105230.0,1.55916228]
[1748846692276,0.26167454,105240.0,105230.0,1.55916228]
[1748846696983,0.8544605,105240.0,105230.0,0.0333]
[1748846697185,0.1899892,105230.0,105220.0,0.42574297]
[1748846697388,0.47180218,105230.0,105220.0,0.42574297]
[1748846697997,0.57180218,105230.0,105220.0,0.42574297]
[1748846698384,0.66068916,105230.0,105220.0,0.06494297]
[1748846698679,0.54469618,105230.0,105220.0,0.06494297]
[1748846698881,0.66068916,105230.0,105220.0,0.2737872]
[1748846699081,0.57180218,105230.0,105220.0,0.25495027]
[1748846699285,0.66068916,105230.0,105220.0,0.25495027]
[1748846699595,1.02148916,105230.0,105220.0,0.25495027]
[1748846701785,0.90549618,105230.0,105220.0,0.25495027]
[1748846702794,0.54469618,105230.0,105220.0,0.73174325]
[1748846703393,0.4560092,105230.0,105220.0,0.73174325]
[1748846703586,0.3913092,105230.0,105220.0,0.73174325]
[1748846704694,0.3913092,105230.0,105220.0,0.61575027]
[1748846704877,0.53760218,105230.0,105220.0,0.06494297]
[1748846705189,1.01938916,105230.0,105220.0,0.06494297]
[1748846705589,1.0236387,105230.0,105220.0,0.06494297]
[1748846709793,0.90764572,105230.0,105220.0,0.06494297]
[1748846709990,1.0236387,105230.0,105220.0,0.06494297]
[1748846710298,1.0236387,105230.0,105220.0,0.07521998]
[1748846710495,0.90764572,105230.0,105220.0,0.10531998]
[1748846710694,1.0236387,105230.0,105220.0,0.10531998]
[1748846712687,1.0236387,105230.0,105220.0,0.10535049]
[1748846714899,1.0236387,105230.0,105220.0,0.07525049]
[1748846715586,1.0236387,105230.0,105220.0,0.03234297]
[1748846715792,1.0236387,105230.0,105220.0,0.02307392]
[1748846715991,0.1900073,105220.0,105210.0,0.3912]
[1748846716189,0.94249642,105220.0,105210.0,0.3912]
[1748846716695,0.50569642,105220.0,105210.0,0.3912]
[1748846716912,0.94277642,105220.0,105210.0,0.3912]
[1748846717197,1.04277642,105220.0,105210.0,0.3912]
[1748846718596,0.92678344,105220.0,105210.0,0.3912]
[1748846718795,1.02870344,105220.0,105210.0,0.5812254]
[1748846718996,1.14469642,105220.0,105210.0,0.4231]
[1748846720890,1.14894596,105220.0,105210.0,0.4231]
[1748846722803,1.14894596,105220.0,105210.0,0.6178754]
[1748846723604,1.14894596,105220.0,105210.0,0.42785]
[1748846724102,1.14894596,105220.0,105210.0,0.47080145]
[1748846724504,0.97074596,105220.0,105210.0,0.06705]
[1748846724706,1.39387298,105220.0,105210.0,0.06705]
[1748846725005,1.50986596,105220.0,105210.0,0.06705]
[1748846726401,1.50986596,105220.0,105210.0,0.11004313]
[1748846729903,1.50986596,105220.0,105210.0,0.11004579]
[1748846733408,1.39387298,105220.0,105210.0,0.11004579]
[1748846733607,1.07278596,105220.0,105210.0,0.11004579]
[1748846733810,1.50990596,105220.0,105210.0,0.11004579]
[1748846734308,1.50990596,105220.0,105210.0,0.11004696]
[1748846736017,0.97074596,105220.0,105210.0,0.11004696]
[1748846736206,1.50974596,105220.0,105210.0,0.11004696]
[1748846743022,1.50974596,105220.0,105210.0,0.11007613]
[1748846744317,1.65542428,105220.0,105210.0,0.11007613]
[1748846744616,1.65542428,105220.0,105210.0,0.06705]
[1748846744816,1.0004313,105220.0,105210.0,0.06705]
[1748846745012,1.5393913,105220.0,105210.0,0.05777981]
[1748846747131,1.5395513,105220.0,105210.0,0.05777981]
[1748846747324,1.42355832,105220.0,105210.0,0.05777981]
[1748846747525,1.5395513,105220.0,105210.0,0.05777981]
[1748846748419,1.0004313,105220.0,105210.0,0.05777981]
[1748846748621,1.5395913,105220.0,105210.0,0.05777981]
[1748846749126,1.0004313,105220.0,105210.0,0.05777981]
[1748846749327,1.5395913,105220.0,105210.0,0.05777981]
[1748846749524,1.5395913,105220.0,105210.0,0.08947981]
[1748846750321,0.6396313,105220.0,105210.0,0.45027981]
[1748846750627,0.93958083,105220.0,105210.0,0.79930903]
[1748846750815,0.50274083,105220.0,105210.0,0.79930903]
[1748846751023,0.50274083,105220.0,105210.0,0.69271671]
[1748846751024,0.50254083,105220.0,105210.0,0.69271671]
[1748846751319,0.93974083,105220.0,105210.0,0.69271671]
[1748846751526,0.93974083,105220.0,105210.0,0.69270438]
[1748846751718,0.93974083,105220.0,105210.0,0.68330372]
[1748846751919,1.05573381,105220.0,105210.0,0.68330372]
[1748846752128,0.51661381,105220.0,105210.0,0.68330372]
[1748846752319,1.05565381,105220.0,105210.0,0.68330372]
[1748846753320,1.05565381,105220.0,105210.0,0.68330372]
[1748846754323,1.05565381,105220.0,105210.0,0.49327832]
[1748846755524,1.05565381,105220.0,105210.0,0.13247832]
[1748846755823,1.05565381,105220.0,105210.0,0.13246924]
[1748846757927,1.11775381,105220.0,105210.0,0.13246924]
[1748846758322,1.47855381,105220.0,105210.0,0.10076924]
[1748846758522,1.1472713,105220.0,105210.0,0.05777981]
[1748846758826,1.1472713,105220.0,105210.0,0.04851001]
[1748846760131,1.5080713,105220.0,105210.0,0.04851001]
[1748846761533,1.5080713,105220.0,105210.0,0.03665]
[1748846763739,1.5080713,105220.0,105210.0,0.09965]
[1748846765836,0.1900254,105210.0,105200.0,0.00014297]
[1748846766038,0.1900435,105200.0,105190.0,98.60256325]
[1748846766230,1.28502255,105200.0,105190.0,98.60256325]
[1748846766536,1.40370954,105200.0,105190.0,98.60256325]
[1748846767540,1.50370954,105200.0,105190.0,98.60256325]
[1748846768337,1.51311489,105200.0,105190.0,98.60256325]
[1748846768924,1.51311489,105200.0,105190.0,98.63416325]
[1748846769937,0.84847656,105200.0,105190.0,98.63416325]
[1748846770124,0.84847656,105200.0,105190.0,98.66536325]
[1748846770125,1.50418954,105200.0,105190.0,98.66536325]
[1748846770434,0.42368255,105200.0,105190.0,98.66536325]
[1748846770636,0.93581433,105200.0,105190.0,98.85542475]
[1748846770830,0.49845433,105200.0,105190.0,99.33221773]
[1748846771030,0.84744957,105200.0,105190.0,99.33221773]
[1748846771248,0.84724957,105200.0,105190.0,99.33221773]
[1748846771429,0.84744957,105200.0,105190.0,99.33221773]
[1748846773037,0.52580255,105200.0,105190.0,99.21622475]
[1748846774131,0.52580255,105200.0,105190.0,99.02616325]
[1748846774537,0.52580255,105200.0,105190.0,99.06907017]
[1748846774741,0.52580255,105200.0,105190.0,99.02616325]
[1748846775132,0.52580255,105200.0,105190.0,99.06907271]
[1748846775444,0.52580255,105200.0,105190.0,99.02616325]
[1748846776936,0.52580255,105200.0,105190.0,98.70827061]
[1748846777147,1.03794731,105200.0,105190.0,98.66536325]
[1748846778537,1.08490503,105200.0,105190.0,98.66536325]
[1748846780651,1.08915457,105200.0,105190.0,98.66536325]
[1748846782152,1.08915457,105200.0,105190.0,98.67011325]